bitfinex/quotes_SOLUSD_20250112
["timestamp","ask_amount","ask_price","bid_price","bid_amount"]
[1736657128934,79.04413058,187.56,187.5,8.83396769]
[1736657130835,1.5249,187.58,187.5,8.83396769]
[1736657137768,1.5249,187.58,187.48,106.376884]
[1736657137912,1.5249,187.58,187.48,91.43396769]
[1736657142156,21.5249,187.58,187.48,82.6]
[1736657142755,79.04413058,187.57,187.46,8.83396769]
[1736657144758,8.36837099,187.63,187.56,8.83396769]
[1736657144923,8.36837099,187.63,187.62,32.61085169]
[1736657145251,8.36837099,187.63,187.61,8.83396769]
[1736657145455,8.36837099,187.63,187.6,8.83396769]
[1736657146056,1.6415,187.71,187.6,8.83396769]
[1736657147153,1.6415,187.71,187.61,8.83396769]
[1736657147747,1.6415,187.71,187.6,23.776884]
[1736657147968,1.6415,187.71,187.55,19.3866]
[1736657148128,1.6415,187.71,187.59,8.83396769]
[1736657148322,1.6415,187.71,187.6,8.83396769]
[1736657148522,23.776884,187.7,187.59,8.83396769]
[1736657148932,23.776884,187.7,187.58,8.83396769]
[1736657149657,23.776884,187.7,187.59,8.83396769]
[1736657151861,79.04413058,187.69,187.58,8.83396769]
[1736657152963,79.04413058,187.63,187.52,84.1537]
[1736657153255,86.98683058,187.63,187.54,8.83396769]
[1736657156059,86.98683058,187.63,187.53,8.83396769]
[1736657157750,79.04413058,187.62,187.53,8.83396769]
[1736657158568,79.04413058,187.61,187.5,23.776884]
[1736657158756,79.04413058,187.61,187.53,8.83396769]
[1736657162075,79.04413058,187.61,187.54,8.83396769]
[1736657163776,79.04413058,187.6,187.54,8.83396769]
[1736657169197,79.04413058,187.6,187.53,8.83396769]
[1736657169367,79.04413058,187.59,187.49,82.6]
[1736657169556,79.04413058,187.59,187.52,8.83396769]
[1736657172098,79.04413058,187.59,187.53,8.83396769]
[1736657175206,79.04413058,187.59,187.49,82.6]
[1736657175207,79.04413058,187.59,187.52,8.83396769]
[1736657175799,79.04413058,187.59,187.51,8.83396769]
[1736657176098,79.04413058,187.58,187.5,8.83396769]
[1736657177908,79.04413058,187.58,187.51,8.83396769]
[1736657180117,79.04413058,187.58,187.52,8.83396769]
[1736657183022,79.04413058,187.58,187.53,8.83396769]
[1736657183184,79.04413058,187.58,187.52,8.83396769]
[1736657192300,79.04413058,187.58,187.54,8.83396769]
[1736657192500,79.04413058,187.58,187.53,8.83396769]
[1736657193445,79.04413058,187.58,187.54,8.83396769]
[1736657197434,79.04413058,187.58,187.55,8.83396769]
[1736657200113,79.04413058,187.58,187.53,8.83396769]
[1736657201032,79.04413058,187.58,187.54,2.76475761]
[1736657202744,79.04413058,187.58,187.53,8.83396769]
[1736657203342,79.04413058,187.57,187.47,82.6]
[1736657203641,79.04413058,187.57,187.47,83.39988388]
[1736657203846,79.04413058,187.57,187.51,8.83396769]
[1736657205029,79.04413058,187.57,187.52,2.76498659]
[1736657205647,80.62373058,187.57,187.52,2.76498659]
[1736657206762,80.62373058,187.57,187.53,2.76498659]
[1736657208521,80.62373058,187.57,187.51,8.83396769]
[1736657209773,80.62373058,187.57,187.52,2.71509447]
[1736657211234,80.62373058,187.57,187.53,2.71509447]
[1736657211658,79.04413058,187.56,187.53,2.71509447]
[1736657212361,79.04413058,187.56,187.5,8.83396769]
[1736657213960,79.04413058,187.56,187.51,2.71493275]
[1736657215169,79.04413058,187.56,187.5,8.83396769]
[1736657217667,79.04413058,187.55,187.5,8.83396769]
[1736657217845,79.04413058,187.55,187.51,2.71351424]
[1736657219432,79.04413058,187.55,187.5,8.83396769]
[1736657221162,79.04413058,187.55,187.49,8.83396769]
[1736657222159,79.04413058,187.55,187.45,83.39994556]
[1736657222347,79.04413058,187.55,187.48,8.83396769]
[1736657222548,79.04413058,187.55,187.49,8.83396769]
[1736657225540,79.04413058,187.54,187.45,0.79994556]
[1736657225743,79.04413058,187.54,187.45,8.83396769]
[1736657226877,79.04413058,187.53,187.45,8.83396769]
[1736657230172,79.04413058,187.52,187.46,8.83396769]
[1736657232171,79.04413058,187.51,187.41,106.376884]
[1736657232377,79.04413058,187.51,187.45,8.83396769]
[1736657233768,79.04413058,187.51,187.41,106.376884]
[1736657233976,79.04413058,187.51,187.45,8.83396769]
[1736657237496,79.04413058,187.51,187.46,8.83396769]
[1736657237665,79.04413058,187.51,187.41,106.376884]
[1736657237666,79.04413058,187.51,187.45,8.83396769]
[1736657239791,79.04413058,187.51,187.46,8.83396769]
[1736657240487,79.04413058,187.51,187.41,106.376884]
[1736657240488,79.04413058,187.51,187.45,8.83396769]
[1736657252803,79.04413058,187.51,187.44,8.83396769]
[1736657253398,80.56603058,187.51,187.44,8.83396769]
[1736657261122,80.56603058,187.51,187.43,8.83396769]
[1736657263697,80.56603058,187.51,187.42,8.83396769]
[1736657265216,80.56603058,187.51,187.38,176.68747076]
[1736657265217,79.04413058,187.5,187.38,223.9516]
[1736657265514,79.04413058,187.49,187.4,8.83396769]
[1736657265890,79.04413058,187.49,187.39,8.83396769]
[1736657266286,79.04413058,187.49,187.38,82.6]
[1736657266287,79.04413058,187.45,187.38,8.83396769]
[1736657268308,79.04413058,187.44,187.38,8.83396769]
[1736657268616,79.04413058,187.43,187.36,8.83396769]
[1736657274325,79.04413058,187.43,187.37,8.83396769]
[1736657276923,1.6377,187.42,187.37,8.83396769]
[1736657280211,1.6377,187.42,187.34,82.6]
[1736657280412,1.6377,187.42,187.35,8.83396769]
[1736657282226,6.5978,187.45,187.41,8.83396769]
[1736657282521,79.04413058,187.46,187.41,8.83396769]
[1736657282828,79.04413058,187.45,187.4,8.83396769]
[1736657284331,79.04413058,187.45,187.39,8.83396769]
[1736657288431,79.04413058,187.44,187.36,8.83396769]
[1736657289929,6.2523,187.43,187.36,8.83396769]
[1736657290131,6.2523,187.43,187.32,217.5]
[1736657290427,6.2523,187.43,187.35,8.83396769]
[1736657292633,79.04413058,187.42,187.35,8.83396769]
[1736657295420,79.04413058,187.42,187.36,8.83396769]
[1736657296342,79.04413058,187.42,187.37,8.83396769]
[1736657298444,79.04413058,187.41,187.37,8.83396769]
[1736657300943,79.04413058,187.45,187.4,8.83396769]
[1736657303047,79.04413058,187.44,187.39,8.83396769]
[1736657306658,79.04413058,187.44,187.38,8.83396769]
[1736657308757,79.04413058,187.43,187.36,8.83396769]
[1736657311347,79.04413058,187.43,187.34,82.6]
[1736657311727,79.04413058,187.43,187.36,8.83396769]
[1736657313457,79.04413058,187.42,187.36,8.83396769]
[1736657313648,79.04413058,187.42,187.35,8.83396769]
[1736657316949,79.04413058,187.42,187.36,8.83396769]
[1736657319447,79.04413058,187.41,187.36,8.83396769]
[1736657320557,79.04413058,187.41,187.35,8.83396769]
[1736657325864,79.04413058,187.41,187.36,8.83396769]
[1736657326171,79.04413058,187.39,187.33,8.83396769]
[1736657327777,8.36837099,187.46,187.29,88.9911]
[1736657327778,79.04413058,187.38,187.29,88.9911]
[1736657327949,79.04413058,187.38,187.31,8.83396769]
[1736657332878,10.1233504,187.42,187.27,1.607]
[1736657332879,79.04413058,187.37,187.27,1.607]
[1736657333180,79.04413058,187.37,187.29,8.83396769]
[1736657333955,79.04413058,187.36,187.29,8.83396769]
[1736657334157,80.66913058,187.36,187.28,8.83396769]
[1736657335980,80.66913058,187.36,187.29,8.83396769]
[1736657343394,79.04413058,187.35,187.29,8.83396769]
[1736657347295,79.04413058,187.34,187.24,6.4591]
[1736657347601,79.04413058,187.34,187.23,82.6]
[1736657347767,79.04413058,187.34,187.26,8.83396769]
[1736657349887,79.04413058,187.34,187.27,8.83396769]
[1736657350596,79.04413058,187.33,187.28,8.83396769]
[1736657353283,79.04413058,187.33,187.23,82.6]
[1736657353485,79.04413058,187.33,187.27,8.83396769]
[1736657354078,79.04413058,187.33,187.23,82.6]
[1736657354277,79.04413058,187.33,187.27,8.83396769]
[1736657358609,79.04413058,187.32,187.22,1.5083]
[1736657358804,79.04413058,187.32,187.24,8.83396769]
[1736657359297,79.04413058,187.32,187.25,8.83396769]
[1736657363206,7.8522,187.31,187.25,8.83396769]
[1736657363396,7.8522,187.31,187.24,8.83396769]
[1736657364297,79.04413058,187.3,187.24,8.83396769]
[1736657367992,79.04413058,187.3,187.25,8.83396769]
[1736657368197,79.04413058,187.3,187.27,8.83396769]
[1736657370211,79.04413058,187.3,187.21,106.376884]
[1736657370415,79.04413058,187.3,187.26,8.83396769]
[1736657371203,79.04413058,187.3,187.25,8.83396769]
[1736657372723,79.04413058,187.3,187.24,8.83396769]
[1736657373294,79.04413058,187.3,187.23,8.83396769]
[1736657374405,79.04413058,187.3,187.22,8.83396769]
[1736657375606,79.04413058,187.3,187.21,82.6]
[1736657375926,79.04413058,187.3,187.21,91.43396769]
[1736657376123,79.04413058,187.3,187.22,8.83396769]
[1736657376311,79.04413058,187.29,187.22,8.83396769]
[1736657379927,79.04413058,187.28,187.23,8.83396769]
[1736657380427,79.04413058,187.28,187.24,8.83396769]
[1736657381314,79.04413058,187.28,187.23,8.83396769]
[1736657387703,79.04413058,187.28,187.22,8.83396769]
[1736657390234,79.04413058,187.27,187.18,106.376884]
[1736657390444,79.04413058,187.27,187.2,8.83396769]
[1736657394513,2.10650536,187.32,187.16,8.83396769]
[1736657394514,86.68153058,187.26,187.16,8.83396769]
[1736657398023,79.04413058,187.24,187.15,8.83396769]
[1736657398347,79.04413058,187.23,187.17,8.83396769]
[1736657398749,79.04413058,187.23,187.13,106.376884]
[1736657398923,79.04413058,187.23,187.17,8.83396769]
[1736657400241,79.04413058,187.23,187.18,8.83396769]
[1736657400434,79.04413058,187.23,187.14,14.15978648]
[1736657400435,79.04413058,187.23,187.2,8.83396769]
[1736657400621,79.04413058,187.25,187.21,8.83396769]
[1736657405747,79.04413058,187.25,187.2,8.83396769]
[1736657406533,79.04413058,187.25,187.18,8.83396769]
[1736657407863,79.04413058,187.25,187.16,82.6]
[1736657408147,79.04413058,187.22,187.14,8.83396769]
[1736657409552,79.04413058,187.22,187.12,82.6]
[1736657409727,79.04413058,187.22,187.14,8.83396769]
[1736657412252,79.04413058,187.21,187.14,8.83396769]
[1736657414025,79.04413058,187.21,187.15,8.83396769]
[1736657418374,79.04413058,187.2,187.15,8.83396769]
[1736657426565,79.04413058,187.2,187.14,8.83396769]
[1736657436674,79.04413058,187.18,187.1,13.3615]
[1736657436877,79.04413058,187.18,187.12,8.83396769]
[1736657437485,79.04413058,187.18,187.11,8.83396769]
[1736657439180,79.04413058,187.16,187.08,1.6035]
[1736657439354,79.04413058,187.16,187.07,8.83396769]
[1736657440559,1.6569,187.19,187.03,1.5753]
[1736657440560,79.04413058,187.14,187.03,1.5753]
[1736657440748,85.67543058,187.14,187.05,8.83396769]
[1736657440955,1.631,187.13,187.05,8.83396769]
[1736657441154,1.631,187.13,187.06,8.83396769]
[1736657441556,1.631,187.13,187.0,1.5753]
[1736657441783,1.631,187.13,187.02,8.83396769]
[1736657441784,79.04413058,187.11,187.02,8.83396769]
[1736657442080,79.04413058,187.11,187.0,1.5753]
[1736657442288,79.04413058,187.11,187.0,8.83396769]
[1736657442466,83.58413058,187.11,186.97,134.9]
[1736657442788,83.58413058,187.11,187.0,8.83396769]
[1736657443168,79.04413058,187.09,186.96,1.5753]
[1736657443357,79.04413058,187.09,186.99,8.83396769]
[1736657443555,79.04413058,187.08,187.0,8.83396769]
[1736657443970,79.04413058,187.08,186.96,1.5753]
[1736657444285,79.04413058,187.08,186.99,8.83396769]
[1736657445879,79.04413058,187.07,187.0,8.83396769]
[1736657446283,79.04413058,187.06,186.99,8.83396769]
[1736657450289,80.63583058,187.06,186.99,8.83396769]
[1736657450688,80.63583058,187.06,186.94,0.8021004]
[1736657450872,80.63583058,187.06,186.98,8.83396769]
[1736657451272,79.04413058,187.05,186.98,8.83396769]
[1736657451478,79.04413058,187.05,186.96,20.0]
[1736657451667,79.04413058,187.05,186.98,8.83396769]
[1736657453206,79.04413058,187.05,186.96,20.0]
[1736657453392,79.04413058,187.05,186.98,8.83396769]
[1736657456298,79.04413058,187.05,186.97,23.776884]
[1736657456483,79.04413058,187.05,187.0,8.83396769]
[1736657458791,79.04413058,187.05,186.99,8.83396769]
[1736657459095,79.04413058,187.05,186.97,23.776884]
[1736657459397,79.04413058,187.05,186.98,8.83396769]
[1736657461276,79.04413058,187.03,186.96,8.83396769]
[1736657461689,79.04413058,187.03,186.94,8.83396769]
[1736657461898,79.04413058,187.02,186.94,8.83396769]
[1736657462094,79.04413058,187.02,186.95,8.83396769]
[1736657476015,79.04413058,187.02,186.96,8.83396769]
[1736657476187,79.04413058,187.02,186.97,8.83396769]
[1736657477726,79.04413058,187.02,186.96,8.83396769]
[1736657481428,79.04413058,187.02,186.97,8.83396769]
[1736657482323,79.04413058,187.02,186.96,8.83396769]
[1736657483222,79.04413058,187.02,186.97,8.83396769]
[1736657491215,79.04413058,187.02,186.96,8.83396769]
[1736657491616,79.04413058,187.02,186.97,23.776884]
[1736657502625,79.04413058,187.02,186.96,23.776884]
[1736657503331,79.04413058,187.02,186.92,23.776884]
[1736657503527,79.04413058,187.02,186.96,23.776884]
[1736657504566,79.04413058,187.02,186.96,8.83396769]
[1736657504764,79.04413058,187.02,186.97,8.83396769]
[1736657505058,79.04413058,187.02,186.96,8.83396769]
[1736657511163,79.04413058,187.02,186.92,23.776884]
[1736657511370,79.04413058,187.02,186.96,23.776884]
[1736657511759,79.04413058,187.02,186.91,0.80217755]
[1736657511948,79.04413058,187.02,186.95,8.83396769]
[1736657512438,79.04413058,187.02,186.91,23.776884]
[1736657512768,79.04413058,187.02,186.94,8.83396769]
[1736657515551,79.04413058,187.02,186.95,23.776884]
[1736657515756,79.04413058,187.02,186.95,8.83396769]
[1736657519586,8.36837099,187.04,186.97,23.776884]
[1736657519774,8.36837099,187.04,186.97,8.83396769]
[1736657520079,8.36837099,187.04,186.93,23.776884]
[1736657520243,8.36837099,187.04,186.93,8.83396769]
[1736657520646,1.5112,187.0,186.88,1.5502]
[1736657520856,1.5112,187.0,186.91,8.83396769]
[1736657521168,1.5112,187.0,186.93,32.61085169]
[1736657523047,1.5112,187.0,186.92,8.83396769]
[1736657523242,1.5112,187.0,186.93,23.776884]
[1736657523668,1.5112,187.0,186.93,8.83396769]
[1736657524163,1.5112,187.0,186.94,8.83396769]
[1736657524768,1.5112,187.0,186.95,32.61085169]
[1736657525074,79.04413058,187.02,186.97,8.83396769]
[1736657525648,79.04413058,187.02,186.96,8.83396769]
[1736657526070,79.04413058,187.02,186.93,23.776884]
[1736657526381,79.04413058,187.02,186.96,8.83396769]
[1736657529891,79.04413058,187.02,186.97,8.83396769]
[1736657534681,87.41250157,187.02,186.97,8.83396769]
[1736657538070,8.36837099,187.02,186.97,8.83396769]
[1736657538573,8.36837099,187.02,186.91,14.17720115]
[1736657538779,8.36837099,187.02,186.95,8.83396769]
[1736657539459,8.36837099,187.02,186.96,23.776884]
[1736657539777,8.36837099,187.02,186.89,0.80227615]
[1736657539981,8.36837099,187.02,186.93,8.83396769]
[1736657540689,8.36837099,187.02,186.94,23.776884]
[1736657540862,8.36837099,187.02,186.92,8.83396769]
[1736657541058,1.5569,187.0,186.92,23.776884]
[1736657541980,1.5569,187.0,186.91,23.776884]
[1736657542186,1.5569,187.0,186.91,32.61085169]
[1736657542786,1.5569,187.0,186.9,8.83396769]
[1736657542954,1.5569,187.0,186.91,23.776884]
[1736657543160,1.5569,187.0,186.91,32.61085169]
[1736657543985,80.60103058,187.0,186.91,32.61085169]
[1736657544181,80.60103058,187.0,186.92,8.83396769]
[1736657545261,80.60103058,187.0,186.91,8.83396769]
[1736657546691,79.04413058,186.99,186.9,8.83396769]
[1736657547091,79.04413058,186.99,186.91,23.776884]
[1736657548394,79.04413058,186.99,186.91,8.83396769]
[1736657548687,79.04413058,186.99,186.93,32.61085169]
[1736657551779,79.04413058,186.99,186.88,0.80232496]
[1736657551780,79.04413058,186.99,186.94,8.83396769]
[1736657552692,79.04413058,186.99,186.95,8.83396769]
[1736657553011,8.36837099,187.01,186.97,8.83396769]
[1736657553508,87.41250157,187.03,186.97,8.83396769]
[1736657554198,87.41250157,187.03,186.96,8.83396769]
[1736657555683,87.41250157,187.03,186.98,8.83396769]
[1736657555999,87.41250157,187.03,186.99,8.83396769]
[1736657556908,79.04413058,187.03,186.99,8.83396769]
[1736657557401,79.04413058,187.03,186.98,8.83396769]
[1736657558907,1.5038,187.04,186.98,8.83396769]
[1736657559310,1.5038,187.04,186.98,23.776884]
[1736657572625,20.0,187.02,186.98,23.776884]
[1736657573197,1.5038,187.04,186.98,23.776884]
[1736657574814,12.84837099,187.07,187.0,32.61085169]
[1736657574815,8.36837099,187.07,187.0,32.61085169]
[1736657575112,8.36837099,187.07,187.01,8.83396769]
[1736657575888,20.0,187.06,187.01,8.83396769]
[1736657576693,87.26903058,187.09,187.01,8.83396769]
[1736657577512,80.60273058,187.09,187.01,8.83396769]
[1736657580820,79.04413058,187.09,187.02,23.776884]
[1736657583715,79.04413058,187.09,187.02,8.83396769]
[1736657583925,79.04413058,187.09,187.0,1.614]
[1736657583926,79.04413058,187.11,187.04,23.776884]
[1736657584122,20.0,187.08,187.04,23.776884]
[1736657585518,20.0,187.08,187.02,23.776884]
[1736657585730,20.0,187.08,187.04,23.776884]
[1736657586818,20.0,187.08,187.04,8.83396769]
[1736657589827,20.0,187.08,187.04,23.776884]
[1736657590032,20.0,187.08,187.02,8.83396769]
[1736657591928,20.0,187.08,187.02,23.776884]
[1736657595021,20.0,187.08,187.0,1.614]
[1736657597647,20.0,187.08,187.01,23.776884]
[1736657600410,79.04413058,187.1,187.01,23.776884]
[1736657600811,79.04413058,187.09,187.01,23.776884]
[1736657601833,79.04413058,187.09,187.01,32.61085169]
[1736657602838,79.04413058,187.09,187.02,8.83396769]
[1736657606651,70.04413058,187.09,187.02,8.83396769]
[1736657614253,6.6663,187.13,187.05,23.776884]
[1736657614431,71.63453058,187.14,187.08,8.83396769]
[1736657614636,70.04413058,187.14,187.08,8.83396769]
[1736657615568,20.0,187.13,187.09,8.83396769]
[1736657615867,17.43293206,187.18,187.12,8.83396769]
[1736657616362,14.41147099,187.19,187.12,8.83396769]
[1736657616661,6.0431,187.19,187.12,8.83396769]
[1736657618275,20.0,187.18,187.12,8.83396769]
[1736657618447,20.0,187.18,187.13,8.83396769]
[1736657621675,70.04413058,187.21,187.13,8.83396769]
[1736657625542,70.04413058,187.21,187.14,8.83396769]
[1736657625971,70.04413058,187.21,187.15,23.776884]
[1736657627247,70.04413058,187.21,187.15,32.61085169]
[1736657628565,70.04413058,187.26,187.19,23.776884]
[1736657631371,57.9932486,187.26,187.19,23.776884]
[1736657631952,57.9932486,187.26,187.17,8.83396769]
[1736657632162,57.9932486,187.26,187.16,23.776884]
[1736657632370,57.9932486,187.25,187.14,90.4824]
[1736657632575,57.9932486,187.25,187.14,99.31636769]
[1736657632874,20.0,187.22,187.14,90.4824]
[1736657633179,20.0,187.22,187.14,7.8824]
[1736657634179,20.0,187.22,187.15,23.776884]
[1736657634950,20.0,187.22,187.15,32.61085169]
[1736657637776,20.0,187.22,187.15,23.776884]
[1736657642646,20.0,187.21,187.15,23.776884]
[1736657642849,57.9932486,187.2,187.1,1.6059]
[1736657643067,57.9932486,187.2,187.1,10.43986769]
[1736657643268,57.9932486,187.2,187.11,23.776884]
[1736657647479,57.9932486,187.2,187.11,32.61085169]
[1736657647679,57.9932486,187.19,187.11,23.776884]
[1736657648972,57.9932486,187.19,187.1,1.6059]
[1736657649174,57.9932486,187.18,187.1,1.6059]
[1736657649373,57.9932486,187.18,187.06,217.5]
[1736657649374,57.9932486,187.17,187.07,8.83396769]
[1736657650884,57.9932486,187.17,187.08,23.776884]
[1736657652470,20.0,187.13,187.05,1.5379]
[1736657652780,20.0,187.13,187.06,23.776884]
[1736657653475,20.0,187.12,187.06,23.776884]
[1736657654585,20.0,187.12,187.05,1.5379]
[1736657654988,20.0,187.12,187.04,23.776884]
[1736657657289,57.9932486,187.11,187.02,8.83396769]
[1736657659899,57.9932486,187.11,187.03,23.776884]
[1736657660905,57.9932486,187.1,187.01,8.83396769]
[1736657661105,57.9932486,187.1,186.99,82.6]
[1736657661402,57.9932486,187.1,187.01,8.83396769]
[1736657662178,57.9932486,187.09,187.01,8.83396769]
[1736657664994,57.9932486,187.09,187.0,23.776884]
[1736657665195,57.9932486,187.09,187.01,8.83396769]
[1736657666704,57.9932486,187.08,187.01,8.83396769]
[1736657671107,57.9932486,187.08,187.02,8.83396769]
[1736657674009,57.9932486,187.08,187.03,8.83396769]
[1736657674210,57.9932486,187.08,187.04,8.83396769]
[1736657678717,57.9932486,187.1,187.04,8.83396769]
[1736657688723,1.5364,187.11,187.06,8.83396769]
[1736657688934,57.9932486,187.13,187.07,8.83396769]
[1736657690222,57.9932486,187.13,187.08,8.83396769]
[1736657691607,1.5704,187.15,187.09,8.83396769]
[1736657692516,57.9932486,187.16,187.09,8.83396769]
[1736657693537,57.9932486,187.16,187.1,8.83396769]
[1736657693748,20.0,187.15,187.11,8.83396769]
[1736657694109,57.9932486,187.18,187.11,8.83396769]
[1736657695428,57.9932486,187.18,187.12,8.83396769]
[1736657698334,57.9932486,187.18,187.11,8.83396769]
[1736657699330,57.9932486,187.18,187.12,8.83396769]
[1736657700917,57.9932486,187.18,187.13,23.776884]
[1736657701117,57.9932486,187.18,187.14,8.83396769]
[1736657702417,57.9932486,187.18,187.13,8.83396769]
[1736657705642,57.9932486,187.21,187.13,8.83396769]
[1736657713137,6.5554,187.23,187.14,25.424584]
[1736657713138,57.9932486,187.23,187.14,25.424584]
[1736657713331,57.9932486,187.23,187.17,8.83396769]
[1736657713732,57.9932486,187.23,187.18,8.83396769]
[1736657717656,20.0,187.23,187.18,8.83396769]
[1736657719158,77.9932486,187.23,187.09,10.37426769]
[1736657719331,79.6096486,187.23,187.09,10.37426769]
[1736657719533,79.6096486,187.23,187.1,23.776884]
[1736657719733,20.0,187.19,187.09,10.37426769]
[1736657720347,59.6096486,187.23,187.11,8.83396769]
[1736657720541,59.6096486,187.23,187.1,23.776884]
[1736657720542,59.6096486,187.23,187.14,8.83396769]
[1736657720743,20.0,187.2,187.14,8.83396769]
[1736657720945,20.0,187.2,187.15,8.83396769]
[1736657721435,20.0,187.2,187.14,8.83396769]
[1736657721641,20.0,187.23,187.14,8.83396769]
[1736657725163,57.9932486,187.22,187.1,83.40161485]
[1736657725363,57.9932486,187.22,187.1,91.43396769]
[1736657725867,20.0,187.17,187.1,82.6]
[1736657726448,20.0,187.17,187.1,91.43396769]
[1736657726648,20.0,187.17,187.1,82.6]
[1736657727272,59.5715486,187.2,187.12,8.83396769]
[1736657727558,57.9932486,187.24,187.14,8.83396769]
[1736657727757,20.0,187.2,187.14,8.83396769]
[1736657728565,20.0,187.2,187.14,23.776884]
[1736657731676,20.0,187.16,187.03,1.5314]
[1736657731885,24.54,187.15,187.03,1.5314]
[1736657732047,24.54,187.15,187.03,10.36536769]
[1736657733776,24.54,187.15,187.04,23.776884]
[1736657734444,20.0,187.14,187.04,23.776884]
[1736657735082,4.54,187.15,187.04,23.776884]
[1736657735251,4.54,187.15,187.04,32.61085169]
[1736657738983,20.0,187.07,186.93,1.5361]
[1736657739153,1.6557,187.06,186.96,8.83396769]
[1736657739352,20.0,187.03,186.93,1.5361]
[1736657739656,20.0,187.03,186.95,8.83396769]
[1736657742657,20.0,187.03,186.96,8.83396769]
[1736657744479,20.0,186.99,186.89,8.83396769]
[1736657747955,1.5008,186.98,186.89,8.83396769]
[1736657751578,21.5008,186.98,186.9,8.83396769]
[1736657753181,21.5008,186.98,186.86,106.376884]
[1736657753484,21.5008,186.98,186.9,8.83396769]
[1736657754971,20.0,186.98,186.94,8.83396769]
[1736657757087,62.5532486,187.01,186.94,8.83396769]
[1736657759361,62.5532486,187.01,186.95,8.83396769]
[1736657760562,7.9623,187.02,186.96,8.83396769]
[1736657761984,1.5008,187.02,186.97,8.83396769]
[1736657762773,20.0,187.03,186.97,8.83396769]
[1736657769370,20.0,187.03,186.96,8.83396769]
[1736657769691,20.0,187.03,186.97,32.61085169]
[1736657772181,20.0,187.03,186.98,8.83396769]
[1736657772493,7.9297,187.06,186.94,23.776884]
[1736657772494,1.5929,187.06,187.01,8.83396769]
[1736657772695,6.2743,187.1,187.01,8.83396769]
[1736657772897,6.2743,187.1,187.02,8.83396769]
[1736657773399,6.2743,187.1,187.04,8.83396769]
[1736657776613,1.6038,187.11,187.04,8.83396769]
[1736657776777,1.6038,187.11,187.05,8.83396769]
[1736657776976,1.6038,187.11,187.06,8.83396769]
[1736657777704,1.6038,187.11,187.05,8.83396769]
[1736657780398,1.6038,187.11,187.04,8.83396769]
[1736657780581,1.6038,187.11,187.05,8.83396769]
[1736657784599,1.6038,187.11,187.06,23.776884]
[1736657784883,68.8075486,187.15,187.06,23.776884]
[1736657784884,10.8143,187.15,187.06,23.776884]
[1736657785493,6.2743,187.15,187.06,8.83396769]
[1736657787612,6.2743,187.15,187.06,23.776884]
[1736657792803,6.2743,187.15,187.06,8.83396769]
[1736657794705,6.2743,187.15,187.06,23.776884]
[1736657799109,6.2743,187.15,187.06,8.83396769]
[1736657801522,6.2743,187.15,187.05,32.61085169]
[1736657802142,6.2743,187.15,187.06,8.83396769]
[1736657802319,6.2743,187.15,187.05,32.61085169]
[1736657802512,6.2743,187.15,187.06,8.83396769]
[1736657804445,6.2743,187.15,187.05,23.776884]
[1736657805437,6.2743,187.15,187.05,32.61085169]
[1736657805623,6.2743,187.15,187.07,8.83396769]
[1736657807439,6.2743,187.15,187.06,8.83396769]
[1736657809443,6.2743,187.15,187.05,32.61085169]
[1736657811048,6.2743,187.15,187.06,8.83396769]
[1736657817843,1.5837,187.11,186.97,221.25305598]
[1736657818046,1.5837,187.11,187.01,8.83396769]
[1736657818549,1.5837,187.11,187.02,8.83396769]
[1736657820144,1.5837,187.11,187.03,8.83396769]
[1736657820339,1.5837,187.11,187.04,8.83396769]
[1736657820744,1.5837,187.11,187.03,8.83396769]
[1736657822827,1.5837,187.11,187.02,23.776884]
[1736657823157,1.5837,187.11,187.02,32.61085169]
[1736657824956,1.5837,187.11,187.03,8.83396769]
[1736657833266,1.5837,187.11,187.02,32.61085169]
[1736657833778,20.0,187.1,187.02,8.83396769]
[1736657836869,20.0,187.1,187.03,8.83396769]
[1736657838468,20.0,187.1,187.02,32.61085169]
[1736657839667,20.0,187.1,187.02,8.83396769]
[1736657839869,6.2153,187.09,187.02,8.83396769]
[1736657840165,6.2153,187.09,187.01,82.6]
[1736657841570,6.2153,187.09,187.01,91.43396769]
[1736657861585,6.2153,187.09,187.01,90.93396769]
[1736657864757,6.2153,187.09,187.01,82.1]
[1736657868888,6.2153,187.09,187.01,90.93396769]
[1736657869104,1.5837,187.11,187.05,8.83396769]
[1736657869309,1.5837,187.11,187.06,8.83396769]
[1736657870875,1.5837,187.11,187.07,8.83396769]
[1736657871075,1.5837,187.11,187.06,8.83396769]
[1736657873395,1.5837,187.11,187.06,90.93396769]
[1736657875487,1.5837,187.11,187.06,82.1]
[1736657879405,1.5837,187.11,187.04,23.776884]